Cogmind - Beta 14 @@@ ROGUE MODE // 2024.08.07 @ 14:00:30 Player: weedlord420 Result: Self-destructed Performance ------------- Evolutions (0) 0 Regions Visited (4) 800 Robots Destroyed (35) 175 Value Destroyed (900) 900 Prototype IDs (23) 460 Alien Tech Used (0) 0 Bonus (380) 380 TOTAL SCORE: 2715 Bonus ------- Follower Combat Kills 95 Aligned with FarCom 300 Friendly Fire -15 Cogmind --------- Core Integrity 59/250 Matter 254/300 Energy 265/265 System Corruption 0% Temperature Warm (112) Movement Treading (240) Ox1 Location -9/Mines Parts ------- > --- POWER (1) -------- Improved Ion Engine > --- PROPULSION (2) --- Light Treads > --- UTILITY (2) ------ Large Storage Unit Targeting Computer > --- WEAPON (2) ------- Beam Cannon Assault Rifle > --- INVENTORY (15) --- Ion Engine Ion Engine Light Nuclear Core Aluminum Leg Aluminum Leg Aluminum Leg Heat Sink Superbattery (1500) Large Matter Pod (150) Hacking Suite Beamcaster Beam Cannon Light Assault Rifle Rocket Launcher Peak State ------------ > --- POWER ------------ Light Nuclear Core > --- PROPULSION ------- Light Treads Light Treads > --- UTILITY ---------- Large Storage Unit Targeting Computer > --- WEAPON ----------- Assault Rifle Assault Rifle > --- INVENTORY -------- Ion Engine Ion Engine Light Nuclear Core Aluminum Leg Aluminum Leg Aluminum Leg Heat Sink Superbattery Large Matter Pod Hacking Suite Beamcaster Beam Cannon Beam Cannon Light Assault Rifle Grenade Launcher [Rating: 12] Favorites ----------- Power Ion Engine Engine Ion Engine Power Core Light Nuclear Core Propulsion Light Treads Treads Light Treads Utility Targeting Computer Storage Large Storage Unit Processor Targeting Computer Weapon Assault Rifle Energy Cannon Beam Cannon Ballistic Gun Assault Rifle Launcher Grenade Launcher Build | -11 -10 -10 -10 -9 ------- Run | Yrd Mat Min Exi Min Slots Evolved . | . . . . . Power . | . . . . . Propulsion . | . . . . . Utility . | . . . . . Weapon . | . . . . . Parts Attached 23 | 6 8 4 . 5 Power 4 | 1 1 1 . 1 Engine 3 | 1 1 . . 1 Core 1 | . . 1 . . Reactor . | . . . . . Propulsion 5 | 2 2 1 . . Treads 5 | 2 2 1 . . Leg . | . . . . . Wheel . | . . . . . Hover . | . . . . . Flight . | . . . . . Utility 3 | 1 2 . . . Device . | . . . . . Storage 2 | 1 1 . . . Processor 1 | . 1 . . . Hackware . | . . . . . Protection . | . . . . . Artifact . | . . . . . Weapon 11 | 2 3 2 . 4 Energy Gun . | . . . . . Energy Cannon 1 | . . . . 1 Ballistic Gun 7 | 2 3 1 . 1 Ballistic Cannon . | . . . . . Launcher 3 | . . 1 . 2 Special Weapon . | . . . . . Impact Weapon . | . . . . . Slashing Weapon . | . . . . . Piercing Weapon . | . . . . . Special Melee Weapon . | . . . . . Unidentified Prototypes . | . . . . . Parts Lost 2 | . . 1 . 1 Power . | . . . . . Propulsion 2 | . . 1 . 1 Utility . | . . . . . Weapon . | . . . . . Highest Loss Streak 1 | . . 1 . 1 To Critical Strikes . | . . . . . Average Slot Usage (%) 99 | . 98 99 100 98 Engine 7 | . 13 3 . 11 Core 6 | . . 10 14 2 Treads 27 | . 27 27 28 26 Storage 14 | . 14 14 14 14 Processor 13 | . 13 14 14 14 Ballistic Gun 26 | . 26 27 28 21 Peak Build Rating 12 | 6 8 11 12 12 Average Rating 9 | 3 7 10 11 11 On Entrance 7 | . 6 8 11 12 Naked Turns . | . . . . . Heaviest Build 32 | 12 29 30 29 32 Greatest Support 40 | 40 40 40 40 40 Greatest Overweight (x) 1 | 1 1 1 . 1 Average Overweight (x) . | . . . . . Largest Inventory Capacity 15 | 8 15 15 15 15 Average Capacity 14 | 7 14 15 15 15 Most Carried 15 | 6 14 15 15 15 Average Carried 12 | 1 9 14 14 14 Final Capacity 15 | 8 15 15 15 15 Final Carried 15 | 1 14 14 15 14 Class Distribution -------------------- 100% | Mutant Dominant Class ---------------- Mutant | -10/Materials Mutant | -10/Mines Mutant | -10/Exiles Mutant | -9/Mines Resources | -11 -10 -10 -10 -9 ----------- Run | Yrd Mat Min Exi Min Matter Collected 970 | 191 456 130 . 193 Remotely . | . . . . . Salvage Created 1090 | . 774 116 . 200 Parts 72 | . 59 7 . 6 Haulers Intercepted 1 | . 1 . . . Recyclers Shooed 6 | . 4 2 . . Parts Field Recycled . | . . . . . Retrieved Matter . | . . . . . Parts Self-Destructed . | . . . . . Prevented . | . . . . . Kills | -11 -10 -10 -10 -9 ------- Run | Yrd Mat Min Exi Min Combat Hostiles Destroyed 27 | . 16 5 . 6 Guns 24 | . 16 5 . 3 AOE 3 | . . . . 3 Classes Destroyed 8 | . 6 1 . 1 Worker 1 | . . 1 . . Hauler 1 | . 1 . . . Recycler 2 | . 2 . . . Operator 1 | . 1 . . . Watcher 3 | . 3 . . . Swarmer 8 | . 5 3 . . Grunt 17 | . 11 2 . 4 Duelist 2 | . . . . 2 Best Kill Streak 7 | . 7 3 . 3 Combat Bots Only 4 | . 4 2 . 3 Max Kills in Single Turn 1 | . 1 1 . 1 Gunslinging . | . . . . . Exploded 1 | . . . . 1 Melee . | . . . . . Uniques/NPCs Destroyed . | . . . . . Combat | -11 -10 -10 -10 -9 -------- Run | Yrd Mat Min Exi Min Hostile Shots Fired 100 | . 52 25 . 23 Missed 31 | . 17 7 . 7 Damage Taken 993 | . 382 230 . 381 Core 191 | . 60 34 . 97 Absorbed by Shields . | . . . . . Core Remaining (%) 100 | 100 . . . . Volleys Fired 108 | . 70 18 . 20 Largest 2 | . 2 2 . 2 Hottest 80 | . 40 50 . 80 Shots Fired 208 | . 134 36 . 38 Gun 191 | . 134 33 . 24 Cannon 8 | . . . . 8 Launcher 9 | . . 3 . 6 Special . | . . . . . Kinetic 191 | . 134 33 . 24 Thermal 8 | . . . . 8 Explosive 9 | . . 3 . 6 Electromagnetic . | . . . . . Robot Hit Streak 17 | . 17 6 . 11 Robot Miss Streak 5 | . 5 3 . 2 Penetration Max . | . . . . . Secondary Targets 1 | . 1 . . . Max Gunslinging Chain 1 | . 1 . . . Shots Hit Robots 141 | . 92 19 . 30 Core Hits 70 | . 46 12 . 12 Critical Kills 2 | . 2 . . . Critical Parts Destroyed 1 | . . 1 . . Critical Strikes 3 | . 2 1 . . Destroy 3 | . 2 1 . . Melee Attacks . | . . . . . Impact . | . . . . . Slashing . | . . . . . Piercing . | . . . . . Sneak Attacks . | . . . . . Combat Hostiles . | . . . . . Follow-up Attacks . | . . . . . Damage Inflicted 1714 | . 825 281 . 608 Guns 1321 | . 825 263 . 233 Cannons 105 | . . . . 105 Explosions 285 | . . 15 . 270 Melee . | . . . . . Ramming 3 | . . 3 . . Kinetic 1321 | . 825 263 . 233 Thermal 105 | . . . . 105 Explosive 285 | . . 15 . 270 Electromagnetic . | . . . . . Impact . | . . . . . Slashing . | . . . . . Piercing . | . . . . . Highest Corruption . | . . . . . Average Corruption . | . . . . . Corruption Purged . | . . . . . Corruption Blocked . | . . . . . Overload Shots . | . . . . . Overflow Damage 7 | . . . . 7 Projectiles 7 | . . . . 7 Explosions . | . . . . . Melee . | . . . . . Knockbacks . | . . . . . Impact . | . . . . . Kinetic . | . . . . . Secondary . | . . . . . Self-Inflicted Damage 35 | . . 7 . 28 Shots 3 | . . 1 . 2 Rammed . | . . . . . Targets Rammed 1 | . . 1 . . Kicked . | . . . . . Crushed 1 | . . 1 . . Highest Temperature 168 | . 27 8 . 168 Average Temperature 41 | . 9 3 . 67 Received Heat Transfer 393 | . 198 105 . 90 Siege Activations . | . . . . . Robots Corrupted . | . . . . . Combat Hostiles . | . . . . . Parts Fried . | . . . . . Impact Corruptions . | . . . . . Robots Melted . | . . . . . Combat Hostiles . | . . . . . Parts Melted 1 | . . 1 . . Heat Transferred 222 | . . . . 222 Parts Sabotaged . | . . . . . Parts Stolen . | . . . . . Parts Stripped . | . . . . . Power Chain Reactions . | . . . . . Alert | -11 -10 -10 -10 -9 ------- Run | Yrd Mat Min Exi Min Peak Influence 305 | . 305 267 . 216 Initial 35 | . . 35 . . Average 104 | . 140 71 . 132 Maximum Alert Level 1 | . 1 1 . 1 Low Security (%) 85 | 100 73 95 . 96 Level 1 14 | . 26 4 . 3 Level 2 . | . . . . . Level 3 . | . . . . . Level 4 . | . . . . . Level 5 . | . . . . . High Security . | . . . . . Max Security . | . . . . . Squads Dispatched 4 | . 4 . . . Investigation 3 | . 3 . . . Extermination . | . . . . . Reinforcement 1 | . 1 . . . Assault . | . . . . . Garrison . | . . . . . Intercept . | . . . . . Searches Triggered . | . . . . . Construction Impeded . | . . . . . Haulers Reinforced . | . . . . . Active Scanning Responses . | . . . . . Cargo Convoy Interrupts . | . . . . . Stealth | -11 -10 -10 -10 -9 --------- Run | Yrd Mat Min Exi Min Distress Signals 1 | . 1 . . . Communications Jammed . | . . . . . Distress Signals . | . . . . . Times Spotted 50 | . 30 13 . 7 Peak Tracking Total 4 | . 4 3 . 3 Tactical Retreats . | . . . . . Traps | -11 -10 -10 -10 -9 ------- Run | Yrd Mat Min Exi Min Traps Triggered 4 | . 4 . . . Indirectly . | . . . . . Trap Hack Attempts . | . . . . . Triggered . | . . . . . Disarmed . | . . . . . Reprogrammed . | . . . . . Reused . | . . . . . Traps Extracted . | . . . . . Installed . | . . . . . Triggered . | . . . . . Machines | -11 -10 -10 -10 -9 ---------- Run | Yrd Mat Min Exi Min Machines Disabled 3 | . . . . 3 Max in Single Turn 1 | . . . . 1 Machines Repaired . | . . . . . Machines Dismantled . | . . . . . Machines Sabotaged . | . . . . . Overloaded Fab Kills . | . . . . . Hacking | -11 -10 -10 -10 -9 --------- Run | Yrd Mat Min Exi Min Machines Accessed 4 | . 3 . 1 . Terminals 2 | . 2 . . . Fabricators . | . . . . . Repair Stations 1 | . 1 . . . Recycling Units . | . . . . . Scanalyzers . | . . . . . Garrison Access . | . . . . . Total Hacks 7 | . 6 . 1 . Successful 1 | . . . 1 . Failed 6 | . 6 . . . Catastrophic 2 | . 2 . . . Database Lockouts . | . . . . . Manual 3 | . 2 . 1 . Terminals 4 | . 4 . . . Fabricators . | . . . . . Repair Stations 2 | . 2 . . . Recycling Units . | . . . . . Scanalyzers . | . . . . . Garrison Access . | . . . . . Terminal Hacks 1 | . . . 1 . Derelict Proto ID Bank 1 | . . . 1 . Fabricator Hacks . | . . . . . Repair Station Hacks . | . . . . . Recycling Unit Hacks . | . . . . . Scanalyzer . | . . . . . Garrison Access Hacks . | . . . . . Unauthorized Hacks . | . . . . . Terminals . | . . . . . Fabricators . | . . . . . Repair Stations . | . . . . . Recycling Units . | . . . . . Scanalyzers . | . . . . . Garrison Access . | . . . . . Data Cores Recovered . | . . . . . Used . | . . . . . Hacking Detections 3 | . 3 . . . Full Trace Events 1 | . 1 . . . Feedback Events . | . . . . . Feedback Blocked . | . . . . . Robot Schematics Acquired . | . . . . . Robots Built . | . . . . . Authchips . | . . . . . Time . | . . . . . Total Robot Build Rating . | . . . . . Part Schematics Acquired . | . . . . . Parts Built . | . . . . . Authchips . | . . . . . Time . | . . . . . Total Part Build Rating . | . . . . . Parts Repaired . | . . . . . Time . | . . . . . Parts Recycled . | . . . . . Recycled Matter . | . . . . . Retrieved Matter . | . . . . . Retrieved Components . | . . . . . Parts Scanalyzed . | . . . . . Part Schematics Acquired . | . . . . . Parts Damaged . | . . . . . Bothacking | -11 -10 -10 -10 -9 ------------ Run | Yrd Mat Min Exi Min Used RIF Installer . | . . . . . Robots Hacked . | . . . . . Non-combat . | . . . . . Combat . | . . . . . Robot Hacks Applied . | . . . . . Relay Couplers Released . | . . . . . Fabnet Peak Effective % . | . . . . . Robots Rewired . | . . . . . Allies Hacked . | . . . . . Hacks Repelled . | . . . . . Allies | -11 -10 -10 -10 -9 -------- Run | Yrd Mat Min Exi Min Total Allies 3 | . . 3 . . Largest Group 2 | . . 2 2 . Highest-Rated Group 50 | . . 50 50 . Highest-Rated Ally 31 | . . 31 31 . Total Orders . | . . . . . Ally Attacks 14 | . . 14 . . Total Damage 255 | . . 255 . . Kills 7 | . . 7 . . Allies Corrupted . | . . . . . Allies Melted . | . . . . . Intel | -11 -10 -10 -10 -9 ------- Run | Yrd Mat Min Exi Min Robot Analysis Total . | . . . . . Derelict Logs Recovered 2 | . . 1 . 1 Drone Launches . | . . . . . Drone Recoveries . | . . . . . Exploration | -11 -10 -10 -10 -9 ------------- Run | Yrd Mat Min Exi Min Turns Passed 3324 | 59 1313 1403 357 192 Spaces Moved 1579 | 44 615 623 223 74 Core 22 | 22 . . . . Treads 1557 | 22 615 623 223 74 Legs . | . . . . . Wheels . | . . . . . Hover . | . . . . . Flight . | . . . . . Fastest Speed 50 | 50 160 160 160 160 Average Speed 158 | 108 160 160 160 161 Slowest Speed 240 | 160 240 240 160 240 Overloaded Moves . | . . . . . Propulsion Burnouts . | . . . . . Robots Hopped . | . . . . . Cave-ins Triggered . | . . . . . Exploration Rate (%) 56 | 4 97 99 63 21 Regions Visited 4 Branch Regions 3 Pre-discovered Areas 2 | . . 2 . . Known Exits Taken . | . . . . . Unknown Exits Taken 4 | 1 1 1 1 . Scrap Searched 1 | . . 1 . . Spaces Dug 21 | . . 21 . . Terrain Destroyed 71 | . . 21 . 50 Melee . | . . . . . Projectile . | . . . . . AOE 71 | . . 21 . 50 Terrain Rammed . | . . . . . Walls Destroyed . | . . . . . Machines Disabled . | . . . . . Actions | -11 -10 -10 -10 -9 --------- Run | Yrd Mat Min Exi Min Total 2208 | 55 831 992 223 107 Wait 459 | . 115 339 . 5 Move 1575 | 43 614 622 222 74 Hop . | . . . . . Pick Up 33 | 6 21 4 1 1 Fast Attach 2 | 1 . . . 1 Attach 12 | 5 5 1 . 1 Detach . | . . . . . Swap 9 | . 3 3 . 3 Drop 9 | . 3 4 . 2 Fire 108 | . 70 18 . 20 Melee . | . . . . . Ram . | . . . . . Kick . | . . . . . Crush 1 | . . 1 . . Escape Stasis . | . . . . . Rewire . | . . . . . Trap . | . . . . . Miscellaneous . | . . . . . Route ------- -11/Scrapyard -10/Materials (discovered 4 exits: [*Mat x3] / [*Min]) -10/Mines (discovered 4 exits: [*Mat x2] / *Exi / [*Sub]) -10/Exiles -9/Mines History --------- Turn | Location | Event 11 | -11/Scrapyard | Discovered new exit (range 15) 60 | -11/Scrapyard | Entered Materials 299 | -10/Materials | Discovered new exit (range 14) 313 | -10/Materials | Build established: Mutant 1036 | -10/Materials | Discovered new exit (range 16) 1168 | -10/Materials | Discovered new exit (range 12) 1281 | -10/Materials | Discovered new exit (range 4) 1373 | -10/Materials | Entered Mines 1478 | -10/Mines | Discovered new exit (range 6) 1544 | -10/Mines | Discovered new exit (range 13) 1691 | -10/Mines | Learned location of Zion (-6) 1748 | -10/Mines | Escorted by a lone wolf Derelict 1768 | -10/Mines | Learned location of Storage (-7) 1862 | -10/Mines | Deemed a non-threat by the Exiles lab entrance 1862 | -10/Mines | Discovered new exit (range 5) 2582 | -10/Mines | Discovered new exit (range 3) 2776 | -10/Mines | Entered Exiles 2776 | -10/Exiles | Accompanied by 2 allies 2815 | -10/Exiles | Met 8R-AWN 2842 | -10/Exiles | Met EX-HEX 2887 | -10/Exiles | Met EX-BIN 2909 | -10/Exiles | Aligned with FarCom system 2911 | -10/Exiles | Given EX-Vault access code 2948 | -10/Exiles | Opened EX-Vault 2960 | -10/Exiles | Found Superbattery 3009 | -10/Exiles | Warned to stay clear of 0b10 Research branches 3059 | -10/Exiles | Met EX-DEC 3118 | -10/Exiles | Discovered new exit (range 10) 3133 | -10/Exiles | Left Exiles lab with Superbattery 3133 | -10/Exiles | Entered Mines 3153 | -9/Mines | Met a Derelict bent on vengeance 3186 | -9/Mines | Received a Rocket Launcher from a helpful Derelict 3218 | -9/Mines | Learned 8 Materials zone layouts 3247 | -9/Mines | Core integrity fell below 50% 3325 | -9/Mines | Self-destructed Last Messages --------------- 03246_ L-31 Rogue destroyed. 03251_ G-34 Mercenary destroyed. 03258_ Acquired 25 matter. 03261_ K-01 Serf collects debris. 03263_ Acquired 19 matter. 03264_ The unstable cave ceiling collapses. 03266_ K-01 Serf collects debris. 03268_ The unstable cave ceiling collapses. 03269_ K-01 Serf collects debris. 03271_ U-05 Engineer builds a Wall. 03273_ Acquired 35 matter. 03273_ K-01 Serf collects debris. 03274_ U-05 Engineer lays Concrete. 03276_ K-01 Serf collects debris. 03276_ U-05 Engineer builds a Wall. 03280_ K-01 Serf collects debris. 03301_ Destroyed Melee Analysis Suite. 03309_ Lgt. Treads destroyed. 03319_ L-31 Rogue destroyed. 03322_ Acquired 59 matter. Map ----- +----------------------------------------------------+ | | | | | | | | | | | | | | | | | | | | | | | | | | | | | | | | | ?????????????????????????????????????????????????? | | ?????????????????????????????????????????????????? | | ???????????????????????????????####??????????????? | | ???????????????????????????????=* ???????????????? | | ????????????????????????????g??[%"???????????????? | | ?????????????????????##???????? !????????????????? | | ?????????????????????? ???????? ??" #?????????? | | ??????????????????????# ???????!?""" #?????????? | | ??????????????????????# #######%! ??????????? | | ??????????????????????# @ r#?????????????????? | | ??????????????????????######## #?????????????????? | | ?????????????????????????????# #?????????????????? | | ?????????????????????????????# ##????????????????? | | ????????????????????????????## ##???????????????? | | ????????????????????????????# #???????????????? | | ???????????????????????????## #???????????????? | | ???????????????????????????# #???????????????? | | ????????????#??????????????# #???????????????? | | ???????????# ????##????????# = #???????????????? | | ?????????## ????? ?????#### #???????????????? | | ???????## ????? ????## #???????????????? | | ??????## ?????# #????# #???????????????? | | ??????# ?????# #??##### ## ###???????????????? | | ??????# ??????# #??#! = #?????????????????? | | ??????# ??????# #??# ### #?????????????????? | | ??????# #?????## #??# # #?????????????????? | | ??????# #????## #### ## ### #?????????????????? | | ??????# #???## #####?###?????????????????? | | ?####?#] #??## ### #?????????????????????????? | | ## ### #?## #?# #?????????????????????????? | | # ### #?# #?????????????????????????? | | ! ! ## ! ##?# #?????????????????????????? | | ] ### #??# ?????????????????????????? | | * [ ##?## ##??###?????????????????????????? | +----------------------------------------------------+ Best States ------------- Heat Dissipation 25 Energy Generation 14 Energy Capacity 265 Matter Stores 300 Matter Capacity 300 Sight Range 16 Terrain Scan Density 10 Evasion (%) 50 Targeting Accuracy 5 Recoil Reduction 2 Item Schematics ----------------- None Robot Schematics ------------------ None Fabricated ------------ Nothing Alien Tech Used ----------------- None Achievements -------------- None Challenges ------------ None Game ------ Seed BombCannonWarhead Manual? 0 Play Time 00:18:20 Cumulative 65.4 hours Start 2024.08.07 @ 13:41:57 End 2024.08.07 @ 14:00:30 Sessions 1 Manual Loads 0 Difficulty Rogue Special Mode None Game No. 114 Rogue 113 Adventurer 1 Explorer 0 Win Type - Total 0 Types 0/0/0/0/0/0/0/0/0 Lore% 35 Gallery% 44 Achievement% 39 Wizard Run 0 Options --------- Layout 1 ASCII 0 Keyboard 0 Movement Mouse Keybinds 0 Fullscreen 1 Font 48/Smallcaps Map View 50x35 Zoom Use 0% Tactical HUD 1 Map Filters NONE Filters NONE Steam 1 RUN: 121e7faf-a742-4eaf-ab99-b1446a883816